[Event "ETCC Women 2013"]
[Site "Warsaw"]
[Date "2013.11.10"]
[Round "3"]
[White "Vega Gutierrez, Sabrina"]
[Black "Mamedjarova, Zeinab"]
[Result "1-0"]
[ECO "B01"]
[WhiteElo "2385"]
[BlackElo "2236"]
[PlyCount "83"]
[EventDate "2013.??.??"]
[EventCountry "POL"]
[WhiteTeam "Spain"]
[BlackTeam "Azerbaijan"]
[WhiteTeamCountry "ESP"]
[BlackTeamCountry "AZE"]
[TimeControl "40/5400+30:1800+30"]

1. e4 {[%emt 0:00:00]} d5 {[%emt 0:00:00]} 2. exd5 {[%emt 0:00:00]} Nf6 {[%emt
0:00:11]} 3. Nf3 {[%emt 0:01:20]} Nxd5 {[%emt 0:00:08]} 4. d4 {[%emt 0:00:34]}
g6 {[%emt 0:00:06]} 5. c4 {[%emt 0:02:08]} Nb6 {[%emt 0:00:04]} 6. Nc3 {[%emt
0:01:18]} Bg7 {[%emt 0:00:17]} 7. a4 {[%emt 0:19:10]} a5 {[%emt 0:06:21]} 8. c5
{[%emt 0:00:15]} Nd5 {[%emt 0:02:31]} 9. Bc4 {[%emt 0:00:14]} Nb4 {[%emt 0:03:
03]} 10. Qb3 {[%emt 0:03:15]} O-O {[%emt 0:00:49]} 11. O-O {[%emt 0:04:03]} Bf5
{[%emt 0:08:25]} 12. Bg5 {[%emt 0:03:21]} h6 {[%emt 0:16:28]} 13. Be3 {[%emt 0:
03:40]} c6 {[%emt 0:07:16]} 14. Rac1 {[%emt 0:19:40]} e6 {[%emt 0:10:37]} 15.
Ne5 {[%emt 0:00:08]} Nd7 {[%emt 0:05:34]} 16. Rfd1 {[%emt 0:08:59]} Qe7 {[%emt
0:02:17]} 17. Nxd7 {[%emt 0:03:55]} Qxd7 {[%emt 0:00:04]} 18. Bf4 {[%emt 0:00:
10]} Rfe8 {[%emt 0:01:41]} 19. Ne2 {[%emt 0:01:19]} g5 {[%emt 0:04:01]} 20. Be5
{[%emt 0:03:19]} Rad8 {[%emt 0:02:38]} 21. Bxg7 {[%emt 0:02:02]} Kxg7 {[%emt 0:
00:05]} 22. Ng3 {[%emt 0:00:10]} Bg6 {[%emt 0:03:41]} 23. f3 {[%emt 0:07:58]}
Qe7 {[%emt 0:03:16]} 24. Ne4 {[%emt 0:11:10]} Bxe4 {[%emt 0:05:48]} 25. fxe4 {
[%emt 0:00:02]} Qf6 {[%emt 0:11:27]} 26. Qe3 {[%emt 0:01:33]} Re7 {[%emt 0:00:
49]} 27. Rd2 {[%emt 0:00:30]} Red7 {[%emt 0:00:29]} 28. Rf1 {[%emt 0:00:12]}
Qg6 {[%emt 0:01:15]} 29. Rff2 {[%emt 0:02:53]} Kg8 {[%emt 0:00:58]} 30. h3 {
[%emt 0:00:18]} Qg7 {[%emt 0:01:36]} 31. e5 {[%emt 0:00:02]} Qg6 {[%emt 0:01:
51]} 32. Rf6 {[%emt 0:00:15]} Qb1+ {[%emt 0:00:38]} 33. Kh2 {[%emt 0:00:16]}
Kg7 {[%emt 0:01:08]} 34. Qf3 {[%emt 0:01:05]} Re8 {[%emt 0:00:51]} 35. Rf2 {
[%emt 0:01:19]} Ree7 {[%emt 0:00:04]} 36. Qh5 {[%emt 0:00:49]} Qh7 {[%emt 0:00:
32]} 37. h4 {[%emt 0:00:27]} Kg8 {[%emt 0:00:58]} 38. Rxh6 {[%emt 0:00:32]} Qg7
{[%emt 0:00:02]} 39. hxg5 {[%emt 0:00:33]} Rxd4 {[%emt 0:00:10]} 40. g6 {[%emt
0:00:00]} Rxc4 {[%emt 0:00:00]} 41. gxf7+ {[%emt 0:04:04]} Rxf7 {[%emt 0:01:14]
} 42. Rxf7 {[%emt 0:00:38]} 1-0

[Event "ETCC Women 2013"]
[Site "Warsaw"]
[Date "2013.11.10"]
[Round "3"]
[White "Videnova, Iva"]
[Black "Wisniowska, Klaudia"]
[Result "1/2-1/2"]
[ECO "B09"]
[WhiteElo "2272"]
[BlackElo "2153"]
[PlyCount "143"]
[EventDate "2013.??.??"]
[EventCountry "POL"]
[WhiteTeam "Bulgaria"]
[BlackTeam "Poland"]
[WhiteTeamCountry "BUL"]
[BlackTeamCountry "POL"]
[TimeControl "40/5400+30:1800+30"]

1. e4 {[%emt 0:00:00]} d6 {[%emt 0:00:00]} 2. d4 {[%emt 0:00:00]} Nf6 {[%emt 0:
00:00]} 3. Nc3 {[%emt 0:00:00]} g6 {[%emt 0:00:00]} 4. f4 {[%emt 0:00:03]} Bg7
{[%emt 0:00:00]} 5. Nf3 {[%emt 0:00:07]} O-O {[%emt 0:00:01]} 6. Bd3 {[%emt 0:
00:07]} Nc6 {[%emt 0:00:08]} 7. e5 {[%emt 0:03:03]} dxe5 {[%emt 0:00:27]} 8.
dxe5 {[%emt 0:04:04]} Nd5 {[%emt 0:00:15]} 9. Bd2 {[%emt 0:10:59]} Nb6 {[%emt
0:01:39]} 10. Qe2 {[%emt 0:07:30]} Nb4 {[%emt 0:02:24]} 11. Be4 {[%emt 0:01:14]
} c6 {[%emt 0:06:36]} 12. O-O-O {[%emt 0:02:30]} Be6 {[%emt 0:06:57]} 13. a3 {
[%emt 0:15:44]} N4d5 {[%emt 0:07:05]} 14. h4 {[%emt 0:10:14]} Bg4 {[%emt 0:08:
52]} 15. h5 {[%emt 0:02:31]} Qc8 {[%emt 0:08:25]} 16. Rh4 {[%emt 0:07:41]} gxh5
{[%emt 0:15:48]} 17. Rdh1 {[%emt 0:02:35]} f5 {[%emt 0:00:25]} 18. Bd3 {[%emt
0:05:47]} c5 {[%emt 0:04:43]} 19. Nxd5 {[%emt 0:01:16]} Nxd5 {[%emt 0:00:13]}
20. c4 {[%emt 0:04:52]} Nc7 {[%emt 0:01:39]} 21. Qf2 {[%emt 0:00:07]} Qd7 {
[%emt 0:01:57]} 22. Bc2 {[%emt 0:00:25]} Ne6 {[%emt 0:17:00]} 23. Nh2 {[%emt 0:
00:15]} h6 {[%emt 0:00:50]} 24. Nxg4 {[%emt 0:00:19]} hxg4 {[%emt 0:00:06]} 25.
Bc3 {[%emt 0:05:57]} Nd4 {[%emt 0:03:44]} 26. Rxh6 {[%emt 0:01:26]} g3 {[%emt
0:11:21]} 27. Qe3 {[%emt 0:01:59]} Bxh6 {[%emt 0:01:50]} 28. Rxh6 {[%emt 0:00:
32]} Kg7 {[%emt 0:00:05]} 29. e6 {[%emt 0:01:29]} Qd6 {[%emt 0:00:16]} 30. Rh3
{[%emt 0:00:21]} Rg8 {[%emt 0:00:27]} 31. Bxf5 {[%emt 0:03:51]} Kf8 {[%emt 0:
00:29]} 32. Bh7 {[%emt 0:03:28]} Rd8 {[%emt 0:01:08]} 33. Bxd4 {[%emt 0:00:13]}
Qxd4 {[%emt 0:00:54]} 34. Qxd4 {[%emt 0:00:09]} Rxd4 {[%emt 0:00:03]} 35. Bxg8
{[%emt 0:00:18]} Rxc4+ {[%emt 0:00:21]} 36. Kd2 {[%emt 0:00:13]} Rd4+ {[%emt 0:
00:39]} 37. Kc3 {[%emt 0:00:35]} Kxg8 {[%emt 0:00:08]} 38. Rxg3+ {[%emt 0:00:
08]} Kf8 {[%emt 0:01:01]} 39. f5 {[%emt 0:00:34]} Rf4 {[%emt 0:00:31]} 40. Rg5
{[%emt 0:00:00]} b5 {[%emt 0:00:00]} 41. Kd3 {[%emt 0:06:03]} Rf2 {[%emt 0:02:
28]} 42. Kc3 {[%emt 0:17:30]} Rf4 {[%emt 0:03:40]} 43. b3 {[%emt 0:00:15]} a6 {
[%emt 0:00:34]} 44. Kd3 {[%emt 0:00:49]} Rd4+ {[%emt 0:04:09]} 45. Ke2 {[%emt
0:02:50]} Re4+ {[%emt 0:03:53]} 46. Kf3 {[%emt 0:02:16]} Rd4 {[%emt 0:00:28]}
47. Ke3 {[%emt 0:01:25]} Rd1 {[%emt 0:01:39]} 48. Ke4 {[%emt 0:00:35]} Rd4+ {
[%emt 0:04:35]} 49. Ke5 {[%emt 0:00:49]} Rd2 {[%emt 0:04:15]} 50. Rg3 {[%emt 0:
01:21]} Ra2 {[%emt 0:02:13]} 51. Rc3 {[%emt 0:02:35]} Rxg2 {[%emt 0:04:09]} 52.
Rxc5 {[%emt 0:00:15]} Re2+ {[%emt 0:00:53]} 53. Kd4 {[%emt 0:01:14]} Rd2+ {
[%emt 0:01:46]} 54. Kc3 {[%emt 0:00:11]} Rd6 {[%emt 0:00:03]} 55. Kb4 {[%emt 0:
03:29]} Kg7 {[%emt 0:00:29]} 56. a4 {[%emt 0:01:43]} bxa4 {[%emt 0:00:50]} 57.
bxa4 {[%emt 0:00:23]} Kf6 {[%emt 0:00:43]} 58. Ka5 {[%emt 0:00:05]} Kg5 {[%emt
0:00:41]} 59. Rc7 {[%emt 0:00:40]} Kf6 {[%emt 0:02:18]} 60. Ra7 {[%emt 0:00:41]
} Rd5+ {[%emt 0:00:28]} 61. Kxa6 {[%emt 0:00:14]} Rxf5 {[%emt 0:00:03]} 62. a5
{[%emt 0:01:27]} Kxe6 {[%emt 0:00:07]} 63. Rb7 {[%emt 0:00:18]} Rf1 {[%emt 0:
00:57]} 64. Rb6+ {[%emt 0:00:11]} Kd5 {[%emt 0:00:22]} 65. Kb7 {[%emt 0:00:15]}
e5 {[%emt 0:00:24]} 66. a6 {[%emt 0:00:08]} e4 {[%emt 0:00:27]} 67. a7 {[%emt
0:00:16]} Rf7+ {[%emt 0:00:48]} 68. Ka6 {[%emt 0:00:11]} Rxa7+ {[%emt 0:00:35]}
69. Kxa7 {[%emt 0:00:06]} e3 {[%emt 0:00:55]} 70. Rb8 {[%emt 0:01:13]} Kd4 {
[%emt 0:00:11]} 71. Rd8+ {[%emt 0:00:12]} Kc3 {[%emt 0:00:30]} 72. Re8 1/2-1/2

[Event "ETCC Women 2013"]
[Site "Warsaw"]
[Date "2013.11.10"]
[Round "3"]
[White "Voicu-Jagodzinsky, Carmen"]
[Black "Szczepkowska-Horowska, Karina"]
[Result "1/2-1/2"]
[ECO "C55"]
[WhiteElo "2275"]
[BlackElo "2382"]
[PlyCount "137"]
[EventDate "2013.??.??"]
[EventCountry "POL"]
[WhiteTeam "Romania"]
[BlackTeam "Poland"]
[WhiteTeamCountry "ROU"]
[BlackTeamCountry "POL"]
[TimeControl "40/5400+30:1800+30"]

1. e4 {[%emt 0:00:00]} e5 {[%emt 0:00:00]} 2. Nf3 {[%emt 0:00:00]} Nc6 {[%emt
0:00:00]} 3. Bc4 {[%emt 0:00:11]} Nf6 {[%emt 0:00:05]} 4. d3 {[%emt 0:00:09]}
Be7 {[%emt 0:00:37]} 5. O-O {[%emt 0:00:18]} O-O {[%emt 0:00:05]} 6. Re1 {
[%emt 0:00:11]} d6 {[%emt 0:00:40]} 7. c3 {[%emt 0:00:27]} Na5 {[%emt 0:00:33]}
8. Bb5 {[%emt 0:00:08]} a6 {[%emt 0:00:07]} 9. Ba4 {[%emt 0:00:04]} c5 {[%emt
0:00:11]} 10. Nbd2 {[%emt 0:01:16]} Qc7 {[%emt 0:00:20]} 11. h3 {[%emt 0:02:39]
} Be6 {[%emt 0:01:07]} 12. Bc2 {[%emt 0:03:58]} Rad8 {[%emt 0:02:01]} 13. Nf1 {
[%emt 0:02:01]} h6 {[%emt 0:02:21]} 14. Ne3 {[%emt 0:04:07]} Nc6 {[%emt 0:07:
18]} 15. Nh2 {[%emt 0:13:58]} d5 {[%emt 0:07:08]} 16. Qf3 {[%emt 0:01:08]} d4 {
[%emt 0:03:36]} 17. Nf5 {[%emt 0:01:05]} Bxf5 {[%emt 0:00:53]} 18. Qxf5 {[%emt
0:11:13]} c4 {[%emt 0:00:42]} 19. Rd1 {[%emt 0:00:43]} b5 {[%emt 0:04:06]} 20.
dxc4 {[%emt 0:07:43]} bxc4 {[%emt 0:05:48]} 21. Bd2 {[%emt 0:06:05]} Rd6 {
[%emt 0:07:57]} 22. Nf1 {[%emt 0:08:26]} Rfd8 {[%emt 0:04:49]} 23. Qf3 {[%emt
0:00:47]} h5 {[%emt 0:04:51]} 24. Ba4 {[%emt 0:02:21]} g6 {[%emt 0:04:34]} 25.
Rac1 {[%emt 0:04:35]} Nh7 {[%emt 0:03:31]} 26. Qe2 {[%emt 0:03:56]} d3 {[%emt
0:03:32]} 27. Qe1 {[%emt 0:00:49]} Bg5 {[%emt 0:03:37]} 28. b3 {[%emt 0:01:04]}
Na5 {[%emt 0:05:35]} 29. Be3 {[%emt 0:02:29]} Be7 {[%emt 0:05:19]} 30. Nd2 {
[%emt 0:01:48]} Ng5 {[%emt 0:01:53]} 31. Kh1 {[%emt 0:01:02]} Ne6 {[%emt 0:02:
04]} 32. f3 {[%emt 0:04:58]} Nf4 {[%emt 0:04:00]} 33. Bxf4 {[%emt 0:03:49]}
exf4 {[%emt 0:00:02]} 34. Qf2 {[%emt 0:00:46]} Re6 {[%emt 0:04:47]} 35. b4 {
[%emt 0:01:10]} Nb7 {[%emt 0:01:28]} 36. Qa7 {[%emt 0:00:10]} Qc8 {[%emt 0:02:
40]} 37. Nxc4 {[%emt 0:09:12]} Qxc4 {[%emt 0:00:11]} 38. Qxb7 {[%emt 0:00:08]}
d2 {[%emt 0:03:09]} 39. Rb1 {[%emt 0:00:27]} Qxc3 {[%emt 0:05:08]} 40. Bb3 {
[%emt 0:00:00]} Re5 {[%emt 0:00:00]} 41. Qxa6 {[%emt 0:01:44]} Kg7 {[%emt 0:02:
59]} 42. a3 {[%emt 0:10:02]} f5 {[%emt 0:07:36]} 43. exf5 {[%emt 0:09:46]} Re1+
{[%emt 0:03:27]} 44. Kh2 {[%emt 0:00:07]} Rd6 {[%emt 0:01:39]} 45. Qa7 {[%emt
0:03:23]} Kh6 {[%emt 0:04:44]} 46. Qf2 {[%emt 0:03:35]} Qxb3 {[%emt 0:02:24]}
47. Rxe1 {[%emt 0:03:24]} dxe1=Q {[%emt 0:00:08]} 48. Rxe1 {[%emt 0:00:13]} Bf6
{[%emt 0:01:09]} 49. fxg6 {[%emt 0:00:42]} Kxg6 {[%emt 0:02:18]} 50. Re4 {
[%emt 0:01:31]} Rd1 {[%emt 0:02:15]} 51. Re1 {[%emt 0:01:48]} Rd6 {[%emt 0:04:
16]} 52. Qe2 {[%emt 0:01:22]} Qd3 {[%emt 0:03:33]} 53. Qe8+ {[%emt 0:00:47]}
Kg5 {[%emt 0:01:03]} 54. Re4 {[%emt 0:02:01]} Rd8 {[%emt 0:00:36]} 55. Qe6 {
[%emt 0:00:32]} Qd6 {[%emt 0:00:25]} 56. Qf7 {[%emt 0:00:46]} Rf8 {[%emt 0:01:
03]} 57. Qh7 {[%emt 0:00:01]} h4 {[%emt 0:00:26]} 58. Rc4 {[%emt 0:00:42]} Bd4
{[%emt 0:00:56]} 59. b5 {[%emt 0:00:48]} Rh8 {[%emt 0:00:43]} 60. Qe4 {[%emt 0:
00:12]} Bf2 {[%emt 0:00:20]} 61. Qb1 {[%emt 0:01:00]} Re8 {[%emt 0:00:46]} 62.
Rc6 {[%emt 0:00:33]} Bg3+ {[%emt 0:00:30]} 63. Kh1 {[%emt 0:00:01]} Qd3 {[%emt
0:00:25]} 64. Rc5+ {[%emt 0:00:42]} Kh6 {[%emt 0:00:19]} 65. Rc6+ {[%emt 0:00:
11]} Kg5 {[%emt 0:00:51]} 66. Rc5+ {[%emt 0:00:01]} Kh6 {[%emt 0:00:13]} 67.
Rc6+ {[%emt 0:00:52]} Kg5 {[%emt 0:01:05]} 68. Rc5+ {[%emt 0:00:45]} Kh6 {
[%emt 0:00:15]} 69. Rc6+ {[%emt 0:00:45]} 1/2-1/2

[Event "ETCC Women 2013"]
[Site "Warsaw"]
[Date "2013.11.10"]
[Round "3"]
[White "Vojinovic, Jovana"]
[Black "Gara, Anita"]
[Result "1-0"]
[ECO "A01"]
[WhiteElo "2352"]
[BlackElo "2311"]
[PlyCount "139"]
[EventDate "2013.??.??"]
[EventCountry "POL"]
[WhiteTeam "Serbia"]
[BlackTeam "Hungary"]
[WhiteTeamCountry "SRB"]
[BlackTeamCountry "HUN"]
[TimeControl "40/5400+30:1800+30"]

1. b3 {[%emt 0:00:00]} d5 {[%emt 0:00:12]} 2. Bb2 {[%emt 0:00:00]} c5 {[%emt 0:
00:13]} 3. e3 {[%emt 0:00:00]} Nf6 {[%emt 0:00:40]} 4. Nf3 {[%emt 0:03:36]} e6
{[%emt 0:00:17]} 5. c4 {[%emt 0:00:13]} Be7 {[%emt 0:05:56]} 6. cxd5 {[%emt 0:
03:19]} exd5 {[%emt 0:00:14]} 7. Bb5+ {[%emt 0:00:12]} Bd7 {[%emt 0:00:17]} 8.
Bxd7+ {[%emt 0:05:27]} Nbxd7 {[%emt 0:00:05]} 9. O-O {[%emt 0:00:52]} O-O {
[%emt 0:00:36]} 10. Nc3 {[%emt 0:02:53]} Rc8 {[%emt 0:02:23]} 11. d3 {[%emt 0:
10:06]} Re8 {[%emt 0:06:53]} 12. Ne2 {[%emt 0:01:48]} Bd6 {[%emt 0:11:36]} 13.
Ng3 {[%emt 0:05:07]} Bxg3 {[%emt 0:04:04]} 14. hxg3 {[%emt 0:00:04]} Ng4 {
[%emt 0:02:40]} 15. Rc1 {[%emt 0:00:41]} Qb6 {[%emt 0:04:27]} 16. Nh4 {[%emt 0:
00:59]} Qe6 {[%emt 0:03:35]} 17. d4 {[%emt 0:01:21]} b6 {[%emt 0:04:25]} 18.
Qd3 {[%emt 0:08:43]} Ndf6 {[%emt 0:07:47]} 19. dxc5 {[%emt 0:04:01]} bxc5 {
[%emt 0:00:45]} 20. Rcd1 {[%emt 0:03:15]} c4 {[%emt 0:07:56]} 21. Qd4 {[%emt 0:
01:45]} Qe5 {[%emt 0:03:59]} 22. Rc1 {[%emt 0:03:38]} Ne4 {[%emt 0:09:35]} 23.
bxc4 {[%emt 0:03:27]} dxc4 {[%emt 0:01:59]} 24. Nf3 {[%emt 0:00:07]} Qxd4 {
[%emt 0:00:33]} 25. Bxd4 {[%emt 0:00:05]} Re6 {[%emt 0:03:22]} 26. Rc2 {[%emt
0:00:10]} Ra6 {[%emt 0:05:45]} 27. Nh4 {[%emt 0:03:29]} Nh6 {[%emt 0:03:41]}
28. Rb1 {[%emt 0:04:36]} Nd6 {[%emt 0:02:18]} 29. Nf3 {[%emt 0:06:00]} Nhf5 {
[%emt 0:00:43]} 30. Ba1 {[%emt 0:00:05]} h5 {[%emt 0:02:01]} 31. Nd2 {[%emt 0:
00:40]} Ra4 {[%emt 0:01:20]} 32. Rbc1 {[%emt 0:12:26]} Rb8 {[%emt 0:01:42]} 33.
e4 {[%emt 0:00:44]} c3 {[%emt 0:00:06]} 34. Rxc3 {[%emt 0:08:25]} Nxe4 {[%emt
0:00:03]} 35. Nxe4 {[%emt 0:00:04]} Rxe4 {[%emt 0:00:03]} 36. Rc5 {[%emt 0:00:
03]} Nd4 {[%emt 0:02:36]} 37. Bxd4 {[%emt 0:00:15]} Rxd4 {[%emt 0:00:02]} 38.
Rxh5 {[%emt 0:03:06]} Rd2 {[%emt 0:01:24]} 39. a4 {[%emt 0:00:03]} Ra2 {[%emt
0:01:43]} 40. Ra5 {[%emt 0:00:00]} Rbb2 {[%emt 0:00:00]} 41. Rf5 {[%emt 0:05:
39]} Rc2 {[%emt 0:05:41]} 42. Re1 {[%emt 0:02:46]} Re2 {[%emt 0:00:41]} 43.
Rxe2 {[%emt 0:00:10]} Rxe2 {[%emt 0:00:03]} 44. Kf1 {[%emt 0:00:04]} Re6 {
[%emt 0:02:10]} 45. Ra5 {[%emt 0:00:14]} a6 {[%emt 0:01:22]} 46. f3 {[%emt 0:
00:04]} Kf8 {[%emt 0:02:47]} 47. Rc5 {[%emt 0:02:32]} g6 {[%emt 0:03:26]} 48.
g4 {[%emt 0:03:13]} Ke7 {[%emt 0:02:40]} 49. Rc7+ {[%emt 0:00:30]} Kf6 {[%emt
0:00:13]} 50. Rb7 {[%emt 0:01:40]} Rd6 {[%emt 0:06:14]} 51. Kf2 {[%emt 0:01:02]
} g5 {[%emt 0:00:34]} 52. Ke3 {[%emt 0:00:45]} Ke6 {[%emt 0:00:02]} 53. Ke4 {
[%emt 0:02:40]} f6 {[%emt 0:03:07]} 54. a5 {[%emt 0:04:35]} Rc6 {[%emt 0:00:02]
} 55. Kd4 {[%emt 0:00:04]} Rd6+ {[%emt 0:03:13]} 56. Kc5 {[%emt 0:00:12]} Rd2 {
[%emt 0:01:04]} 57. Kb6 {[%emt 0:00:04]} Rxg2 {[%emt 0:00:19]} 58. Kxa6 {[%emt
0:00:04]} Rg3 {[%emt 0:02:01]} 59. Rb3 {[%emt 0:00:08]} f5 {[%emt 0:00:33]} 60.
gxf5+ {[%emt 0:01:02]} Kf6 {[%emt 0:01:07]} 61. Kb7 {[%emt 0:00:13]} g4 {[%emt
0:00:05]} 62. Rb6+ {[%emt 0:00:06]} Kxf5 {[%emt 0:00:21]} 63. fxg4+ {[%emt 0:
00:05]} Rxg4 {[%emt 0:00:18]} 64. Rb5+ {[%emt 0:02:54]} Ke6 {[%emt 0:00:07]}
65. a6 {[%emt 0:00:03]} Rg7+ {[%emt 0:02:09]} 66. Kb6 {[%emt 0:00:06]} Kd6 {
[%emt 0:01:17]} 67. a7 {[%emt 0:00:12]} Rg8 {[%emt 0:00:04]} 68. Rb1 {[%emt 0:
00:18]} Rh8 {[%emt 0:01:24]} 69. Rd1+ {[%emt 0:00:17]} Ke6 {[%emt 0:00:40]} 70.
Ra1 {[%emt 0:00:06]} 1-0

[Event "ETCC Women 2013"]
[Site "Warsaw"]
[Date "2013.11.10"]
[Round "3"]
[White "Zaksaite, Salomeja"]
[Black "Degrande, Marigje"]
[Result "1-0"]
[ECO "B00"]
[WhiteElo "2200"]
[BlackElo "1867"]
[PlyCount "51"]
[EventDate "2013.??.??"]
[EventCountry "POL"]
[WhiteTeam "Lithuania"]
[BlackTeam "Belgium"]
[WhiteTeamCountry "LTU"]
[BlackTeamCountry "BEL"]
[TimeControl "40/5400+30:1800+30"]

1. e4 {[%emt 0:00:00]} d6 {[%emt 0:00:00]} 2. d4 {[%emt 0:00:05]} g6 {[%emt 0:
00:00]} 3. Bc4 {[%emt 0:03:14]} c6 {[%emt 0:03:08]} 4. Nf3 {[%emt 0:05:18]} Bg7
{[%emt 0:05:33]} 5. Qe2 {[%emt 0:01:04]} Nf6 {[%emt 0:07:52]} 6. Bb3 {[%emt 0:
03:00]} O-O {[%emt 0:05:08]} 7. O-O {[%emt 0:00:30]} Na6 {[%emt 0:02:28]} 8. h3
{[%emt 0:11:04]} Nc7 {[%emt 0:04:33]} 9. e5 {[%emt 0:07:03]} Nfe8 {[%emt 0:02:
55]} 10. c4 {[%emt 0:11:52]} d5 {[%emt 0:09:33]} 11. Nc3 {[%emt 0:00:24]} dxc4
{[%emt 0:05:51]} 12. Bxc4 {[%emt 0:00:15]} Nd5 {[%emt 0:01:04]} 13. Bd2 {[%emt
0:03:14]} Nec7 {[%emt 0:03:51]} 14. Rad1 {[%emt 0:06:27]} a5 {[%emt 0:10:27]}
15. Bc1 {[%emt 0:04:03]} b5 {[%emt 0:04:57]} 16. Bd3 {[%emt 0:00:49]} a4 {
[%emt 0:04:48]} 17. a3 {[%emt 0:04:52]} Be6 {[%emt 0:03:32]} 18. Ne4 {[%emt 0:
01:10]} Qc8 {[%emt 0:02:41]} 19. Qc2 {[%emt 0:01:48]} Na6 {[%emt 0:04:44]} 20.
Nfg5 {[%emt 0:01:51]} Bf5 {[%emt 0:02:52]} 21. f4 {[%emt 0:03:43]} h6 {[%emt 0:
02:21]} 22. Nf3 {[%emt 0:00:30]} Be6 {[%emt 0:05:30]} 23. Qf2 {[%emt 0:06:22]}
Nb6 {[%emt 0:01:07]} 24. Nfd2 {[%emt 0:01:17]} Rd8 {[%emt 0:02:47]} 25. g4 {
[%emt 0:01:40]} Bd5 {[%emt 0:03:02]} 26. f5 1-0

[Event "ETCC Women 2013"]
[Site "Warsaw"]
[Date "2013.11.10"]
[Round "3"]
[White "Ziaziulkina, Nastassia"]
[Black "Srebrnic, Ana"]
[Result "1/2-1/2"]
[ECO "C41"]
[WhiteElo "2350"]
[BlackElo "2198"]
[PlyCount "105"]
[EventDate "2013.??.??"]
[EventCountry "POL"]
[WhiteTeam "Belarus"]
[BlackTeam "Slovenia"]
[WhiteTeamCountry "BLR"]
[BlackTeamCountry "SLO"]
[TimeControl "40/5400+30:1800+30"]

1. e4 {[%emt 0:00:00]} d6 {[%emt 0:00:00]} 2. d4 {[%emt 0:00:00]} Nf6 {[%emt 0:
00:05]} 3. Nc3 {[%emt 0:00:00]} e5 {[%emt 0:00:04]} 4. Nf3 {[%emt 0:00:22]}
Nbd7 {[%emt 0:00:04]} 5. Bc4 {[%emt 0:00:00]} Be7 {[%emt 0:00:06]} 6. O-O {
[%emt 0:00:00]} O-O {[%emt 0:00:05]} 7. a4 {[%emt 0:00:00]} a6 {[%emt 0:00:04]}
8. Re1 {[%emt 0:03:35]} b6 {[%emt 0:00:14]} 9. h3 {[%emt 0:01:31]} Bb7 {[%emt
0:00:48]} 10. d5 {[%emt 0:01:55]} Kh8 {[%emt 0:17:44]} 11. Be3 {[%emt 0:06:50]}
Ng8 {[%emt 0:02:13]} 12. Qd2 {[%emt 0:06:41]} g6 {[%emt 0:03:52]} 13. g3 {
[%emt 0:07:24]} Bc8 {[%emt 0:04:50]} 14. Kg2 {[%emt 0:09:02]} Ndf6 {[%emt 0:04:
47]} 15. Ng1 {[%emt 0:09:51]} Nh5 {[%emt 0:04:46]} 16. Be2 {[%emt 0:04:15]} Ng7
{[%emt 0:01:47]} 17. f4 {[%emt 0:01:33]} f5 {[%emt 0:20:21]} 18. Nf3 {[%emt 0:
05:11]} exf4 {[%emt 0:05:11]} 19. Bxf4 {[%emt 0:00:54]} Nf6 {[%emt 0:08:51]}
20. exf5 {[%emt 0:12:47]} Nxf5 {[%emt 0:02:40]} 21. g4 {[%emt 0:05:55]} Ng7 {
[%emt 0:00:14]} 22. Nd4 {[%emt 0:00:51]} Bb7 {[%emt 0:06:08]} 23. Bf3 {[%emt 0:
01:39]} Ng8 {[%emt 0:00:06]} 24. Re2 {[%emt 0:05:33]} Bf6 {[%emt 0:00:45]} 25.
g5 {[%emt 0:02:36]} Bxd4 {[%emt 0:00:32]} 26. Qxd4 {[%emt 0:00:05]} Ne7 {[%emt
0:00:13]} 27. Qd2 {[%emt 0:04:32]} Nef5 {[%emt 0:01:51]} 28. Kh2 {[%emt 0:00:
48]} Qd7 {[%emt 0:02:20]} 29. Ne4 {[%emt 0:02:11]} Rae8 {[%emt 0:00:46]} 30.
Nf6 {[%emt 0:02:14]} Rxe2+ {[%emt 0:00:09]} 31. Bxe2 {[%emt 0:01:21]} Qf7 {
[%emt 0:00:46]} 32. c4 {[%emt 0:02:02]} Ne8 {[%emt 0:01:31]} 33. Ng4 {[%emt 0:
00:05]} Bc8 {[%emt 0:06:19]} 34. Rf1 {[%emt 0:00:25]} Qg7 {[%emt 0:01:53]} 35.
Nh6 {[%emt 0:02:58]} Nxh6 {[%emt 0:03:04]} 36. gxh6 {[%emt 0:00:04]} Qe7 {
[%emt 0:00:03]} 37. Bd3 {[%emt 0:01:18]} Kg8 {[%emt 0:01:33]} 38. Qg2 {[%emt 0:
01:24]} Bf5 {[%emt 0:00:19]} 39. Bxf5 {[%emt 0:00:34]} Rxf5 {[%emt 0:00:05]}
40. Qd2 {[%emt 0:00:00]} Qf7 {[%emt 0:00:00]} 41. Qd4 {[%emt 0:10:29]} Nf6 {
[%emt 0:11:42]} 42. Rf2 {[%emt 0:08:28]} Nh5 {[%emt 0:00:59]} 43. Be3 {[%emt 0:
00:49]} Rxf2+ {[%emt 0:00:42]} 44. Bxf2 {[%emt 0:00:02]} Qf4+ {[%emt 0:05:36]}
45. Qxf4 {[%emt 0:00:04]} Nxf4 {[%emt 0:00:04]} 46. Kg3 {[%emt 0:00:15]} Nh5+ {
[%emt 0:00:08]} 47. Kf3 {[%emt 0:00:37]} Kf7 {[%emt 0:00:41]} 48. Bh4 {[%emt 0:
00:36]} Ke8 {[%emt 0:00:10]} 49. b4 {[%emt 0:04:20]} Kd7 {[%emt 0:00:07]} 50.
Ke4 {[%emt 0:01:41]} Ke8 {[%emt 0:02:26]} 51. Kf3 {[%emt 0:04:56]} Kd7 {[%emt
0:00:10]} 52. Kg4 {[%emt 0:00:16]} Ke8 {[%emt 0:00:29]} 53. Kf3 {[%emt 0:02:33]
} 1/2-1/2

[Event "ETCC Women 2013"]
[Site "Warsaw"]
[Date "2013.11.10"]
[Round "3"]
[White "Zimina, Olga"]
[Black "Sahl, Sheila Barth"]
[Result "1-0"]
[ECO "A06"]
[WhiteElo "2338"]
[BlackElo "2233"]
[PlyCount "35"]
[EventDate "2013.??.??"]
[EventCountry "POL"]
[WhiteTeam "Italy"]
[BlackTeam "Norway"]
[WhiteTeamCountry "ITA"]
[BlackTeamCountry "NOR"]
[TimeControl "40/5400+30:1800+30"]

1. Nf3 {[%emt 0:00:00]} d5 {[%emt 0:00:00]} 2. c4 {[%emt 0:00:00]} c6 {[%emt 0:
00:00]} 3. g3 {[%emt 0:00:00]} Nf6 {[%emt 0:00:00]} 4. Bg2 {[%emt 0:00:00]}
dxc4 {[%emt 0:00:20]} 5. O-O {[%emt 0:01:12]} Nbd7 {[%emt 0:00:30]} 6. Qc2 {
[%emt 0:00:46]} Nb6 {[%emt 0:00:23]} 7. Na3 {[%emt 0:06:27]} Be6 {[%emt 0:00:
24]} 8. Ng5 {[%emt 0:00:55]} Bg4 {[%emt 0:00:53]} 9. Nxc4 {[%emt 0:01:01]} Bxe2
{[%emt 0:00:34]} 10. Ne5 {[%emt 0:00:10]} Bh5 {[%emt 0:00:26]} 11. Re1 {[%emt
0:02:04]} e6 {[%emt 0:40:33]} 12. g4 {[%emt 0:20:02]} Nxg4 {[%emt 0:43:04]} 13.
Bxc6+ {[%emt 0:08:17]} bxc6 {[%emt 0:00:17]} 14. Qxc6+ {[%emt 0:00:08]} Ke7 {
[%emt 0:00:13]} 15. Ng6+ {[%emt 0:06:44]} Kf6 {[%emt 0:01:32]} 16. Rxe6+ {
[%emt 0:00:17]} Kxg5 {[%emt 0:04:17]} 17. d4+ {[%emt 0:00:24]} Kf5 {[%emt 0:00:
16]} 18. Qe4# {[%emt 0:00:12]} 1-0